fUSD/lending_fUSD_20240409
["ID","MTS","AMOUNT","RATE_DAILY","PERIOD"]
[321989876,1712674504403,3000.0,0.00032654,30]
[321989881,1712674678121,25000.0,0.00032666,30]
[321989882,1712674713130,-536.31632741,0.00019542,7]
[321989883,1712674713165,-1600.0,0.000196,7]
[321989884,1712674713188,-2500.0,0.000197,7]
[321989885,1712674713215,-3300.0,0.000198,7]
[321989886,1712674713246,-4200.0,0.000199,7]
[321989888,1712674736137,1000.0,0.00017951,2]
[321989889,1712674746496,-800.0,0.000207,7]
[321989890,1712674746523,-800.0,0.000208,7]
[321989891,1712674746553,-800.0,0.000209,7]
[321989892,1712674747715,-161.13807414,0.00018051,2]
[321989893,1712674747735,-438.86192586,0.00018052,2]
[321989895,1712674835680,-662.32581776,0.00018051,2]
[321989896,1712674835705,-61.13807414,0.00018052,2]
[321989897,1712674835729,-166.83,0.0001823,2]
[321989898,1712674835752,-250.0,0.00018292,2]
[321989899,1712674835775,-164.79009816,0.0001841,2]
[321989900,1712674835797,-150.0,0.00018422,2]
[321989901,1712674835821,-1130.86209138,0.00018422,2]
[321989902,1712674835844,-2350.35141617,0.00018509,2]
[321989903,1712674835870,-200.0,0.0001851,2]
[321989904,1712674835896,-164.79009812,0.00018524,2]
[321989905,1712674835919,-150.0,0.00018564,2]
[321989906,1712674835942,-334.66799233,0.00018565,2]
[321989907,1712674835965,-499.99,0.00018565,2]
[321989908,1712674835987,-4227.44,0.00018565,2]
[321989909,1712674836011,-23900.0,0.00018575,2]
[321989910,1712674836034,-7582.1,0.00018637,2]
[321989911,1712674836057,-621.02,0.00018637,2]
[321989912,1712674836082,-164.79009812,0.00018637,2]
[321989914,1712674868878,359.12,0.00018315,2]
[321989915,1712674871466,1250.81,0.00018315,2]
[321989916,1712674901125,1000.0,0.00032601,120]
[321989917,1712674918763,3812.09431382,0.00018274,2]
[321989918,1712674918788,820.12,0.00018274,2]
[321989919,1712674918812,820.12,0.00018274,2]
[321989920,1712674918839,820.12,0.00018274,2]
[321989921,1712674918865,820.12,0.00018274,2]
[321989926,1712674930158,1000.0,0.00018,2]
[321989928,1712674941438,210.61666799,0.00018,2]
[321989930,1712674942893,1013.0,0.00018,2]
[321989932,1712674962601,2214.86,0.000297,120]
[321989933,1712674977632,666.62,0.00016326,2]
[321989934,1712675109797,150.0,0.00017827,2]
[321989935,1712675111253,150.0,0.00017898,2]
[321989936,1712675111724,150.0,0.00017969,2]
[321989938,1712675115980,150.0,0.00017827,2]
[321989939,1712675118760,150.0,0.00019242,4]
[321989940,1712675122909,150.23515574,0.00017827,2]
[321989941,1712675126773,150.0,0.00017827,2]
[321989942,1712675130717,150.0,0.00019268,4]
[321989943,1712675130927,150.0,0.00019448,4]
[321989944,1712675134292,150.06080209,0.00017827,2]
[321989945,1712675136225,150.23550794,0.00017827,2]
[321989946,1712675139290,150.43476093,0.00017827,2]
[321989947,1712675141912,150.20125712,0.00017827,2]
[321989948,1712675147064,150.0,0.00017827,2]
[321989949,1712675151433,292.32184905,0.00017827,2]
[321989950,1712675153423,150.05015415,0.00017827,2]
[321989952,1712675179387,167.92,0.00017826,2]
[321989953,1712675199048,500.0,0.00017826,2]
[321989962,1712675252030,200.0,0.00017826,2]
[321989963,1712675268409,25000.0,0.00032599,30]
[321989964,1712675268463,10000.0,0.000297,120]
[321989995,1712675344425,25000.0,0.00032599,30]
[321990062,1712675408022,25000.0,0.00032599,30]
[321990069,1712675414070,2666.22,0.00017816,2]
[321990073,1712675416445,23900.0,0.00017848,2]
[321990074,1712675422211,179.56,0.00017848,2]
[321990093,1712675432261,-150.0,0.00018007,2]
[321990094,1712675432274,-150.0,0.0001804,2]
[321990096,1712675432286,-150.0,0.0001811,2]
[321990098,1712675432295,-150.0,0.0001811,2]
[321990101,1712675432304,-91.84,0.00018174,2]
[321990107,1712675432331,-598.85276723,0.00018174,2]
[321990108,1712675432345,-306.20467746,0.00018174,2]
[321990109,1712675432486,-2672.41496415,0.00018174,2]
[321990110,1712675432496,-150.0,0.00018175,2]
[321990111,1712675432505,-150.0,0.00018181,2]
[321990112,1712675432514,-150.0,0.00018188,2]
[321990113,1712675432524,-150.0,0.00018273,2]
[321990114,1712675432535,-7925.45,0.00018274,2]
[321990115,1712675432545,-4577.01,0.00018274,2]
[321990116,1712675432554,-150.99,0.00018274,2]
[321990117,1712675432563,-150.0,0.00018368,2]
[321990118,1712675432573,-150.0,0.00018393,2]
[321990119,1712675432582,-150.0,0.00018548,2]
[321990120,1712675432592,-666.62,0.0001859,2]
[321990121,1712675432601,-167.35,0.00018653,2]
[321990122,1712675432611,-150.0,0.00018676,2]
[321990123,1712675432620,-150.0,0.00018728,2]
[321990124,1712675432630,-164.79009812,0.00018751,2]
[321990125,1712675432639,-3906.46814454,0.00018859,2]
[321990126,1712675432649,-164.79009812,0.00018864,2]
[321990127,1712675432658,-3302.42445292,0.00018878,2]
[321990128,1712675432668,-14931.86166925,0.0001889,2]
[321990129,1712675432677,-65392.64834536,0.000189,2]
[321990131,1712675432686,-150.0,0.00018908,2]
[321990133,1712675432696,-166.46,0.00018948,2]
[321990135,1712675432705,-150.0,0.00018959,2]
[321990137,1712675432714,-22824.27119921,0.00018965,2]
[321990138,1712675432724,-198.82,0.00018968,3]
[321990139,1712675432733,-596.47,0.00018968,3]
[321990140,1712675432743,-164.79009812,0.00018978,2]
[321990141,1712675432753,-45915.37092901,0.00018999,2]
[321990142,1712675432765,-5985.8999,0.00018999,2]
[321990143,1712675432776,-8689.50510177,0.00018999,2]
[321990144,1712675432791,-4930.25,0.00018999,2]
[321990145,1712675432803,-21748.0,0.00018999,2]
[321990146,1712675432816,-964.71320058,0.00018999,2]
[321990147,1712675432829,-1421.18809713,0.00018999,2]
[321990148,1712675432841,-550.0,0.00018999,2]
[321990149,1712675432918,-415063.1091485,0.00018999,2]
[321990150,1712675432930,-2826.32964267,0.00018999,2]
[321990151,1712675432954,-346.53616094,0.00018999,2]
[321990152,1712675432965,-69259.4114167,0.00018999,2]
[321990192,1712675438358,-8501.69999999,0.00018999,2]
[321990194,1712675438370,-1171.2549473,0.00018999,2]
[321990196,1712675438382,-68884.54279999,0.00018999,2]
[321990200,1712675438409,-6900.0,0.00018999,2]
[321990205,1712675438461,-5216.74879753,0.00018999,2]
[321990212,1712675438540,-577.21206771,0.00018999,2]
[321990214,1712675438552,-14964.8567131,0.00018999,2]
[321990215,1712675438561,-13555.18965616,0.00019,2]
[321990217,1712675438570,-365.59720021,0.00019062,2]
[321990219,1712675438580,-376.71271097,0.00019063,2]
[321990221,1712675438589,-1083.18709187,0.00019065,2]
[321990222,1712675438599,-155.0,0.00019065,2]
[321990224,1712675438608,-20000.0,0.00019066,2]
[321990226,1712675438617,-35915.72010734,0.00019068,2]
[321990228,1712675438629,-18497.61260698,0.00019068,2]
[321990230,1712675438640,-2910.59999903,0.00019068,2]
[321990236,1712675438711,-388980.82391582,0.00019068,2]
[321990238,1712675438720,-205.79473245,0.00019069,2]
[321990240,1712675438730,-156.19761567,0.00019076,2]
[321990243,1712675438739,-226.22179272,0.00019077,2]
[321990245,1712675438748,-3906.46814454,0.00019086,2]
[321990249,1712675438758,-150.0,0.00019088,2]
[321990252,1712675438767,-3302.42445289,0.00019167,2]
[321990255,1712675438777,-2436.13415355,0.00019169,2]
[321990256,1712675438786,-4322.29381628,0.00019177,2]
[321990259,1712675438797,-500.0,0.00019178,2]
[321990261,1712675438806,-581.17188074,0.00019178,2]
[321990264,1712675438815,-796.42,0.00019178,2]
[321990267,1712675438824,-635.64,0.00019178,2]
[321990271,1712675438833,-508.37,0.00019178,2]
[321990273,1712675438843,-500.0,0.00019178,2]
[321990276,1712675438852,-500.0,0.00019178,2]
[321990279,1712675438862,-500.0,0.00019178,2]
[321990282,1712675438871,-500.0,0.00019178,2]
[321990284,1712675438880,-500.0,0.00019178,2]
[321990287,1712675438890,-500.0,0.00019178,2]
[321990290,1712675438899,-500.0,0.00019178,2]
[321990292,1712675438909,-500.0,0.00019178,2]
[321990295,1712675438919,-500.0,0.00019178,2]
[321990297,1712675438928,-500.0,0.00019178,2]
[321990300,1712675438937,-637.93,0.00019178,2]
[321990303,1712675438946,-500.0,0.00019178,2]
[321990306,1712675438955,-500.0,0.00019178,2]
[321990308,1712675438964,-500.0,0.00019178,2]
[321990310,1712675438974,-500.0,0.00019178,2]
[321990312,1712675438984,-694.7,0.00019178,2]
[321990314,1712675438993,-500.0,0.00019178,2]
[321990316,1712675439002,-556.79,0.00019178,2]
[321990318,1712675439011,-500.0,0.00019178,2]
[321990320,1712675439020,-500.0,0.00019178,2]
[321990322,1712675439029,-517.27600706,0.00019178,2]
[321990325,1712675439041,-704.4,0.00019178,2]
[321990326,1712675439051,-500.0,0.00019178,2]
[321990329,1712675439061,-500.0,0.00019178,2]
[321990330,1712675439071,-500.0,0.00019178,2]
[321990332,1712675439080,-500.0,0.00019178,2]
[321990335,1712675439090,-500.0,0.00019178,2]
[321990337,1712675439100,-500.0,0.00019178,2]
[321990339,1712675439110,-500.0,0.00019178,2]
[321990341,1712675439119,-500.0,0.00019178,2]
[321990343,1712675439129,-500.0,0.00019178,2]
[321990344,1712675439139,-500.0,0.00019178,2]
[321990346,1712675439148,-500.0,0.00019178,2]
[321990348,1712675439158,-285.51719747,0.00019178,2]
[321990350,1712675439168,-500.0,0.00019178,2]
[321990352,1712675439178,-500.0,0.00019178,2]
[321990354,1712675439188,-544.04,0.00019178,2]
[321990356,1712675439198,-500.0,0.00019178,2]
[321990358,1712675439208,-500.0,0.00019178,2]
[321990360,1712675439217,-500.0,0.00019178,2]
[321990362,1712675439226,-500.0,0.00019178,2]
[321990364,1712675439237,-500.0,0.00019178,2]
[321990366,1712675439246,-586.4653424,0.00019178,2]
[321990368,1712675439255,-500.0,0.00019178,2]
[321990370,1712675439265,-595.51,0.00019178,2]
[321990372,1712675439275,-500.0,0.00019178,2]
[321990374,1712675439284,-500.0,0.00019178,2]
[321990376,1712675439297,-500.0,0.00019178,2]
[321990378,1712675439307,-500.0,0.00019178,2]
[321990380,1712675439319,-500.0,0.00019178,2]
[321990382,1712675439328,-500.0,0.00019178,2]
[321990384,1712675439338,-500.0,0.00019178,2]
[321990386,1712675439347,-500.0,0.00019178,2]
[321990388,1712675439356,-500.0,0.00019178,2]
[321990390,1712675439366,-482.83549257,0.00019178,2]
[321990392,1712675439376,-500.0,0.00019178,2]
[321990394,1712675439385,-151.40978318,0.00019178,2]
[321990397,1712675439397,-500.0,0.00019178,2]
[321990399,1712675439408,-500.0,0.00019178,2]
[321990401,1712675439417,-636.48110496,0.00019178,2]
[321990403,1712675439426,-656.73,0.00019178,2]
[321990404,1712675439437,-500.0,0.00019178,2]
[321990406,1712675439446,-500.0,0.00019178,2]
[321990408,1712675439455,-500.0,0.00019178,2]
[321990410,1712675439464,-500.0,0.00019178,2]
[321990413,1712675439474,-500.0,0.00019178,2]
[321990414,1712675439483,-534.98,0.00019178,2]
[321990416,1712675439492,-609.18139353,0.00019178,2]
[321990418,1712675439501,-636.93,0.00019178,2]
[321990420,1712675439511,-500.0,0.00019178,2]
[321990421,1712675439520,-500.0,0.00019178,2]
[321990422,1712675439529,-500.0,0.00019178,2]
[321990423,1712675439537,-500.0,0.00019178,2]
[321990424,1712675439549,-500.0,0.00019178,2]
[321990425,1712675439558,-500.0,0.00019178,2]
[321990426,1712675439566,-500.0,0.00019178,2]
[321990427,1712675439576,-500.0,0.00019178,2]
[321990428,1712675439585,-500.0,0.00019178,2]
[321990429,1712675439594,-500.0,0.00019178,2]
[321990430,1712675439602,-500.0,0.00019178,2]
[321990431,1712675439611,-500.0,0.00019178,2]
[321990432,1712675439620,-500.0,0.00019178,2]
[321990433,1712675439628,-500.0,0.00019178,2]
[321990434,1712675439637,-500.0,0.00019178,2]
[321990436,1712675439646,-500.0,0.00019178,2]
[321990438,1712675439655,-699.79,0.00019178,2]
[321990440,1712675439664,-500.0,0.00019178,2]
[321990442,1712675439674,-500.0,0.00019178,2]
[321990444,1712675439683,-500.0,0.00019178,2]
[321990446,1712675439693,-640.46646391,0.00019178,2]
[321990448,1712675439703,-500.0,0.00019178,2]
[321990450,1712675439712,-325.12647058,0.00019178,2]
[321990452,1712675439721,-500.0,0.00019178,2]
[321990454,1712675439730,-500.0,0.00019178,2]
[321990456,1712675439739,-500.0,0.00019178,2]
[321990457,1712675439749,-500.0,0.00019178,2]
[321990459,1712675439757,-500.0,0.00019178,2]
[321990461,1712675439767,-218.8237343,0.00019178,2]
[321990463,1712675439776,-500.0,0.00019178,2]
[321990465,1712675439786,-573.36,0.00019178,2]
[321990467,1712675439798,-500.0,0.00019178,2]
[321990469,1712675439807,-500.0,0.00019178,2]
[321990471,1712675439817,-500.0,0.00019178,2]
[321990473,1712675439826,-500.0,0.00019178,2]
[321990475,1712675439836,-754.07,0.00019178,2]
[321990477,1712675439846,-500.0,0.00019178,2]
[321990479,1712675439856,-500.0,0.00019178,2]
[321990481,1712675439865,-500.0,0.00019178,2]
[321990483,1712675439874,-500.0,0.00019178,2]
[321990485,1712675439884,-500.0,0.00019178,2]
[321990487,1712675439894,-500.0,0.00019178,2]
[321990489,1712675439903,-500.0,0.00019178,2]
[321990491,1712675439913,-500.0,0.00019178,2]
[321990493,1712675439922,-500.0,0.00019178,2]
[321990495,1712675439932,-519.45,0.00019178,2]
[321990497,1712675439942,-500.0,0.00019178,2]
[321990499,1712675439951,-463.07496596,0.00019178,2]
[321990501,1712675439960,-300.0,0.00019178,2]
[321990503,1712675439970,-500.0,0.00019178,2]
[321990505,1712675439979,-500.0,0.00019178,2]
[321990507,1712675439988,-543.63,0.00019178,2]
[321990509,1712675439997,-500.0,0.00019178,2]
[321990511,1712675440007,-500.0,0.00019178,2]
[321990513,1712675440016,-500.0,0.00019178,2]
[321990515,1712675440025,-685.15,0.00019178,2]
[321990517,1712675440034,-500.0,0.00019178,2]
[321990520,1712675440046,-500.0,0.00019178,2]
[321990522,1712675440056,-521.15255232,0.00019178,2]
[321990525,1712675440065,-513.96,0.00019178,2]
[321990527,1712675440074,-500.0,0.00019178,2]
[321990529,1712675440084,-598.43,0.00019178,2]
[321990531,1712675440094,-500.0,0.00019178,2]
[321990533,1712675440103,-526.97,0.00019178,2]
[321990535,1712675440113,-1099.74,0.00019178,2]
[321990537,1712675440122,-500.0,0.00019178,2]
[321990539,1712675440131,-150.0,0.00019178,2]
[321990541,1712675440140,-500.0,0.00019178,2]
[321990542,1712675440150,-617.84,0.00019178,2]
[321990544,1712675440159,-500.0,0.00019178,2]
[321990546,1712675440168,-381.64983417,0.00019178,2]
[321990770,1712675442164,-405.97861752,0.00019177,2]
[321990771,1712675442174,-118.35016583,0.00019178,2]
[321990772,1712675442184,-500.0,0.00019178,2]
[321990773,1712675442193,-537.97,0.00019178,2]
[321990774,1712675442203,-500.0,0.00019178,2]
[321990775,1712675442213,-500.0,0.00019178,2]
[321990776,1712675442223,-500.0,0.00019178,2]
[321990777,1712675442236,-500.0,0.00019178,2]
[321990778,1712675442255,-500.0,0.00019178,2]
[321990779,1712675442264,-500.0,0.00019178,2]
[321990780,1712675442274,-500.0,0.00019178,2]
[321990781,1712675442283,-500.0,0.00019178,2]
[321990782,1712675442292,-504.71,0.00019178,2]
[321990783,1712675442303,-500.0,0.00019178,2]
[321990784,1712675442312,-188.30938433,0.00019178,2]
[321990785,1712675442323,-557.09837733,0.00019178,2]
[321990786,1712675442332,-888.13,0.00019178,2]
[321990787,1712675442341,-500.0,0.00019178,2]
[321990788,1712675442351,-1499.61,0.00019178,2]
[321990789,1712675442360,-500.0,0.00019178,2]
[321990790,1712675442370,-500.0,0.00019178,2]
[321990791,1712675442379,-500.0,0.00019178,2]
[321990792,1712675442389,-500.0,0.00019178,2]
[321990793,1712675442399,-597.8,0.00019178,2]
[321990794,1712675442409,-500.0,0.00019178,2]
[321990795,1712675442419,-500.0,0.00019178,2]
[321990796,1712675442429,-500.0,0.00019178,2]
[321990797,1712675442439,-500.0,0.00019178,2]
[321990798,1712675442448,-500.0,0.00019178,2]
[321990799,1712675442458,-577.33,0.00019178,2]
[321990800,1712675442467,-531.5,0.00019178,2]
[321990801,1712675442476,-500.0,0.00019178,2]
[321990802,1712675442485,-640.8,0.00019178,2]
[321990803,1712675442494,-500.0,0.00019178,2]
[321990804,1712675442503,-500.0,0.00019178,2]
[321990805,1712675442512,-500.0,0.00019178,2]
[321990806,1712675442522,-500.0,0.00019178,2]
[321990807,1712675442531,-500.0,0.00019178,2]
[321990808,1712675442540,-500.0,0.00019178,2]
[321990809,1712675442556,-677.97,0.00019178,2]
[321990810,1712675442565,-500.0,0.00019178,2]
[321990811,1712675442574,-608.73,0.00019178,2]
[321990812,1712675442584,-506.19,0.00019178,2]
[321990813,1712675442593,-500.0,0.00019178,2]
[321990814,1712675442602,-529.05,0.00019178,2]
[321990815,1712675442612,-1417.85,0.00019178,2]
[321990816,1712675442621,-500.0,0.00019178,2]
[321990817,1712675442630,-500.0,0.00019178,2]
[321990818,1712675442639,-500.0,0.00019178,2]
[321990819,1712675442648,-500.0,0.00019178,2]
[321990820,1712675442658,-500.0,0.00019178,2]
[321990821,1712675442667,-1039.9,0.00019178,2]
[321990822,1712675442676,-500.0,0.00019178,2]
[321990823,1712675442685,-500.0,0.00019178,2]
[321990824,1712675442694,-500.0,0.00019178,2]
[321990825,1712675442703,-1583.33,0.00019178,2]
[321990826,1712675442713,-500.0,0.00019178,2]
[321990827,1712675442722,-696.51,0.00019178,2]
[321990828,1712675442731,-500.0,0.00019178,2]
[321990829,1712675442740,-939.29,0.00019178,2]
[321990830,1712675442749,-500.0,0.00019178,2]
[321990831,1712675442759,-1574.33,0.00019178,2]
[321990832,1712675442768,-1464.35,0.00019178,2]
[321990833,1712675442778,-500.0,0.00019178,2]
[321990834,1712675442787,-500.0,0.00019178,2]
[321990836,1712675442798,-500.0,0.00019178,2]
[321990838,1712675442807,-565.89,0.00019178,2]
[321990840,1712675442817,-1741.27,0.00019178,2]
[321990842,1712675442826,-902.04,0.00019178,2]
[321990844,1712675442836,-813.52,0.00019178,2]
[321990847,1712675442846,-500.0,0.00019178,2]
[321990849,1712675442856,-1259.53,0.00019178,2]
[321990850,1712675442865,-528.58,0.00019178,2]
[321990852,1712675442874,-500.0,0.00019178,2]
[321990855,1712675442885,-500.0,0.00019178,2]
[321990857,1712675442894,-299.76697552,0.00019178,2]
[321990859,1712675442903,-1780.42,0.00019178,2]
[321990861,1712675442912,-500.0,0.00019178,2]
[321990863,1712675442921,-500.0,0.00019178,2]
[321990864,1712675442930,-500.0,0.00019178,2]
[321990866,1712675442940,-4260.31,0.00019178,2]
[321990868,1712675442949,-500.0,0.00019178,2]
[321990870,1712675442958,-500.0,0.00019178,2]
[321990872,1712675442967,-500.0,0.00019178,2]
[321990874,1712675442976,-500.0,0.00019178,2]
[321990876,1712675442985,-826.11,0.00019178,2]
[321990877,1712675442994,-500.0,0.00019178,2]
[321990878,1712675443003,-532.8,0.00019178,2]
[321990879,1712675443013,-500.0,0.00019178,2]
[321990880,1712675443022,-500.0,0.00019178,2]
[321990881,1712675443031,-623.69,0.00019178,2]
[321990882,1712675443040,-584.3,0.00019178,2]
[321990883,1712675443052,-1315.43,0.00019178,2]
[321990884,1712675443062,-3173.31,0.00019178,2]
[321990885,1712675443071,-500.0,0.00019178,2]
[321990886,1712675443081,-902.67,0.00019178,2]
[321990887,1712675443090,-500.0,0.00019178,2]
[321990888,1712675443100,-500.0,0.00019178,2]
[321990890,1712675443109,-500.0,0.00019178,2]
[321990891,1712675443119,-1453.77,0.00019178,2]
[321990893,1712675443128,-500.0,0.00019178,2]
[321990894,1712675443137,-500.0,0.00019178,2]
[321990896,1712675443146,-1529.03,0.00019178,2]
[321990898,1712675443155,-500.0,0.00019178,2]
[321990899,1712675443165,-500.0,0.00019178,2]
[321990901,1712675443174,-619.24,0.00019178,2]
[321990902,1712675443183,-500.0,0.00019178,2]
[321990903,1712675443192,-7780.97,0.00019178,2]
[321990904,1712675443201,-500.0,0.00019178,2]
[321990906,1712675443210,-1358.7,0.00019178,2]
[321990908,1712675443220,-2110.87,0.00019178,2]
[321990909,1712675443230,-1625.07,0.00019178,2]
[321990912,1712675443245,-500.0,0.00019178,2]
[321990916,1712675443255,-1617.36,0.00019178,2]
[321990919,1712675443266,-500.0,0.00019178,2]
[321990921,1712675443278,-617.25,0.00019178,2]
[321990925,1712675443289,-500.0,0.00019178,2]
[321990928,1712675443301,-4341.36,0.00019178,2]
[321990933,1712675443310,-500.0,0.00019178,2]
[321990936,1712675443319,-3508.42,0.00019178,2]
[321990939,1712675443328,-337.87906445,0.00019178,2]
[321990942,1712675443337,-747.24,0.00019178,2]
[321990945,1712675443347,-500.0,0.00019178,2]
[321990946,1712675443356,-1520.95,0.00019178,2]
[321990947,1712675443366,-279.48,0.00019178,2]
[321990948,1712675443375,-506.42776214,0.00019178,2]
[321990949,1712675443384,-865.38,0.00019178,2]
[321990950,1712675443393,-500.0,0.00019178,2]
[321990951,1712675443402,-500.0,0.00019178,2]
[321990952,1712675443412,-500.0,0.00019178,2]
[321990953,1712675443421,-23565.43,0.00019178,2]
[321990954,1712675443430,-500.0,0.00019178,2]
[321990955,1712675443439,-2426.37,0.00019178,2]
[321990956,1712675443449,-854.87,0.00019178,2]
[321990957,1712675443458,-500.0,0.00019178,2]
[321990958,1712675443467,-500.0,0.00019178,2]
[321990959,1712675443477,-1328.25,0.00019178,2]
[321990960,1712675443486,-500.0,0.00019178,2]
[321990961,1712675443495,-1608.5,0.00019178,2]
[321990962,1712675443505,-500.0,0.00019178,2]
[321990963,1712675443515,-801.11,0.00019178,2]
[321990964,1712675443525,-82.70196967,0.00019178,2]
[321990965,1712675443619,-319.6045,0.00019178,2]
[321990966,1712675443654,-2956.99353033,0.00019178,2]
[321990967,1712675443664,-500.0,0.00019178,2]
[321990968,1712675443673,-532.86,0.00019178,2]
[321990969,1712675443682,-500.0,0.00019178,2]
[321990970,1712675443691,-500.0,0.00019178,2]
[321990971,1712675443701,-854.73,0.00019178,2]
[321990972,1712675443710,-2855.7,0.00019178,2]
[321990973,1712675443719,-500.0,0.00019178,2]
[321990974,1712675443729,-2296.4,0.00019178,2]
[321990975,1712675443738,-709.14,0.00019178,2]
[321990976,1712675443748,-500.0,0.00019178,2]
[321990977,1712675443757,-500.0,0.00019178,2]
[321990978,1712675443767,-3246.01,0.00019178,2]
[321990979,1712675443776,-500.0,0.00019178,2]
[321990980,1712675443784,-500.0,0.00019178,2]
[321990981,1712675443797,-976.72,0.00019178,2]
[321990982,1712675443807,-500.0,0.00019178,2]
[321990983,1712675443817,-564.45,0.00019178,2]
[321990984,1712675443826,-1135.51,0.00019178,2]
[321990985,1712675443836,-769.27,0.00019178,2]
[321990986,1712675443845,-1309.65,0.00019178,2]
[321990987,1712675443856,-500.0,0.00019178,2]
[321990988,1712675443865,-8330.3,0.00019178,2]
[321990989,1712675443874,-1260.97,0.00019178,2]
[321990990,1712675443884,-409.53232199,0.00019178,2]
[321990991,1712675443893,-1106.89,0.00019178,2]
[321990992,1712675443903,-890.42,0.00019178,2]
[321990993,1712675443912,-976.31,0.00019178,2]
[321990994,1712675443922,-500.0,0.00019178,2]
[321990995,1712675443931,-985.62,0.00019178,2]
[321990996,1712675443941,-500.0,0.00019178,2]
[321990997,1712675443950,-500.0,0.00019178,2]
[321990998,1712675443960,-500.0,0.00019178,2]
[321990999,1712675443970,-1691.49,0.00019178,2]
[321991000,1712675443979,-500.0,0.00019178,2]
[321991001,1712675443989,-1419.15,0.00019178,2]
[321991002,1712675443999,-1121.45,0.00019178,2]
[321991003,1712675444009,-22600.57,0.00019178,2]
[321991004,1712675444020,-500.0,0.00019178,2]
[321991005,1712675444030,-500.0,0.00019178,2]
[321991006,1712675444040,-468.22786207,0.00019178,2]
[321991007,1712675444053,-500.0,0.00019178,2]
[321991008,1712675444062,-500.0,0.00019178,2]
[321991009,1712675444072,-500.0,0.00019178,2]
[321991010,1712675444082,-506.88,0.00019178,2]
[321991011,1712675444091,-500.0,0.00019178,2]
[321991012,1712675444100,-500.0,0.00019178,2]
[321991013,1712675444110,-1023.73,0.00019178,2]
[321991014,1712675444119,-1714.47,0.00019178,2]
[321991015,1712675444128,-909.75,0.00019178,2]
[321991016,1712675444138,-1814.08,0.00019178,2]
[321991017,1712675444147,-772.21,0.00019178,2]
[321991018,1712675444157,-500.0,0.00019178,2]
[321991019,1712675444166,-1148.04,0.00019178,2]
[321991020,1712675444176,-500.0,0.00019178,2]
[321991021,1712675444185,-500.0,0.00019178,2]
[321991023,1712675444194,-1944.62,0.00019178,2]
[321991025,1712675444204,-3153.27,0.00019178,2]
[321991027,1712675444213,-27189.57,0.00019178,2]
[321991029,1712675444222,-1427.61,0.00019178,2]
[321991031,1712675444233,-500.0,0.00019178,2]
[321991033,1712675444243,-1903.46,0.00019178,2]
[321991035,1712675444253,-2617.0,0.00019178,2]
[321991037,1712675444263,-500.0,0.00019178,2]
[321991039,1712675444274,-500.0,0.00019178,2]
[321991041,1712675444283,-2382.21,0.00019178,2]
[321991043,1712675444294,-909.48,0.00019178,2]
[321991045,1712675444304,-1365.53,0.00019178,2]
[321991047,1712675444316,-5457.25,0.00019178,2]
[321991049,1712675444325,-500.0,0.00019178,2]